[Event "Régional Jeunes Occitanie 2024"]
[Site "L'Isle Jourdain, France"]
[Date "2024.02.23"]
[Round "5.8"]
[White "MARTINEZ, Julien"]
[Black "BEUCHER, Simon"]
[Result "1-0"]
[TimeControl "1h30 + 30s/cps"]
[WhiteElo "1556"]
[BlackElo "1295"]

1. d4 {[%clk 01:30:59]} {[%emt 00:00:01]} e6 {[%clk 01:30:38]} {[%emt
00:00:22]} 2. Nf3 {[%clk 01:31:22]} {[%emt 00:00:07]} d5 {[%clk 01:30:07]}
{[%emt 00:01:01]} 3. Bf4 {[%clk 01:31:45]} {[%emt 00:00:06]} Nf6 {[%clk
01:29:29]} {[%emt 00:01:08]} 4. e3 {[%clk 01:32:08]} {[%emt 00:00:08]} Bd6
{[%clk 01:28:19]} {[%emt 00:01:40]} 5. Ne5 {[%clk 01:32:30]} {[%emt 00:00:09]}
O-O {[%clk 01:25:33]} {[%emt 00:03:15]} 6. Nd2 {[%clk 01:32:23]} {[%emt
00:00:37]} c5 {[%clk 01:20:24]} {[%emt 00:05:40]} 7. Bd3 {[%clk 01:30:57]}
{[%emt 00:01:56]} Nc6 {[%clk 01:17:55]} {[%emt 00:02:59]} 8. c3 {[%clk
01:30:55]} {[%emt 00:00:32]} cxd4 {[%clk 01:10:47]} {[%emt 00:07:37]} 9. exd4
{[%clk 01:28:19]} {[%emt 00:03:06]} Bd7 {[%clk 01:06:41]} {[%emt 00:04:37]} 10.
Nxf7 {[%clk 01:28:28]} {[%emt 00:00:21]} Rxf7 {[%clk 01:01:17]} {[%emt
00:05:54]} 11. Bxd6 {[%clk 01:28:17]} {[%emt 00:00:42]} Rc8 {[%clk 00:58:30]}
{[%emt 00:03:16]} 12. O-O {[%clk 01:28:21]} {[%emt 00:00:26]} Be8 {[%clk
00:54:08]} {[%emt 00:04:52]} 13. Bg3 {[%clk 01:28:19]} {[%emt 00:00:31]} Rf8
{[%clk 00:52:46]} {[%emt 00:01:52]} 14. h3 {[%clk 01:28:17]} {[%emt 00:00:33]}
Bh5 {[%clk 00:51:03]} {[%emt 00:02:12]} 15. Qc2 {[%clk 01:28:18]} {[%emt
00:00:30]} Nxd4 {[%clk 00:51:04]} {[%emt 00:00:29]} 16. Qa4 {[%clk 01:25:44]}
{[%emt 00:03:04]} Nc6 {[%clk 00:50:19]} {[%emt 00:01:15]} 17. Rfe1 {[%clk
01:25:56]} {[%emt 00:00:19]} Re8 {[%clk 00:47:35]} {[%emt 00:03:13]} 18. Qb3
{[%clk 01:24:52]} {[%emt 00:01:35]} Qd7 {[%clk 00:46:04]} {[%emt 00:02:01]} 19.
Bb5 {[%clk 01:21:40]} {[%emt 00:03:42]} a6 {[%clk 00:44:27]} {[%emt 00:02:07]}
20. Be2 {[%clk 01:21:06]} {[%emt 00:01:04]} Bg6 {[%clk 00:42:42]} {[%emt
00:02:14]} 21. Nf3 {[%clk 01:21:00]} {[%emt 00:00:36]} Qe7 {[%clk 00:38:20]}
{[%emt 00:04:49]} 22. Ne5 {[%clk 01:20:44]} {[%emt 00:00:49]} Nxe5 {[%clk
00:38:03]} {[%emt 00:00:48]} 23. Bxe5 {[%clk 01:19:51]} {[%emt 00:01:23]} Nd7
{[%clk 00:37:09]} {[%emt 00:01:23]} 24. Bg3 {[%clk 01:19:39]} {[%emt 00:00:43]}
Nf6 {[%clk 00:37:06]} {[%emt 00:00:30]} 25. Bf3 {[%clk 01:19:35]} {[%emt
00:00:38]} Be4 {[%clk 00:36:19]} {[%emt 00:01:16]} 26. Bxe4 {[%clk 01:18:46]}
{[%emt 00:01:20]} Nxe4 {[%clk 00:36:33]} {[%emt 00:00:16]} 27. Be5 {[%clk
01:19:04]} {[%emt 00:00:12]} Rf8 {[%clk 00:36:07]} {[%emt 00:00:55]} 28. f3
{[%clk 01:18:08]} {[%emt 00:01:26]} Nd2 {[%emt 00:01:31]} 29. Qc2 {[%clk
01:13:42]} {[%emt 00:04:53]} Qg5 {[%clk 00:33:29]} {[%emt 00:02:10]} 30. f4
{[%clk 01:13:42]} {[%emt 00:00:30]} Nf3+ {[%clk 00:33:40]} {[%emt 00:00:19]} 31.
Kh1 {[%clk 01:12:06]} {[%emt 00:02:06]} Nxe1 {[%clk 00:33:22]} {[%emt
00:00:48]} 32. Rxe1 {[%clk 01:12:31]} {[%emt 00:00:05]} Qg3 {[%clk 00:33:18]}
{[%emt 00:00:32]} 33. Qd2 {[%clk 01:11:07]} {[%emt 00:01:56]} Rf5 {[%clk
00:31:52]} {[%emt 00:01:54]} 34. Re3 {[%emt 00:03:50]} Qg6 {[%clk 00:30:49]} 35.
Qe1 {[%clk 01:08:42]} {[%emt 00:01:11]} Qh6 {[%clk 00:30:01]} {[%emt 00:01:16]}
36. Rg3 {[%clk 01:06:59]} {[%emt 00:02:13]} g6 {[%clk 00:29:05]} {[%emt
00:01:26]} 37. Qe3 {[%clk 01:00:53]} {[%emt 00:06:35]} Rc4 {[%clk 00:25:02]}
{[%emt 00:04:32]} 38. Qb6 {[%clk 00:57:53]} {[%emt 00:03:31]} Qh4 {[%clk
00:20:50]} {[%emt 00:04:41]} 39. Qxe6+ {[%clk 00:55:40]} {[%emt 00:02:45]} Rf7
{[%clk 00:20:01]} {[%emt 00:01:17]} 40. Qe8+ {[%clk 00:55:50]} {[%emt
00:00:22]} Rf8 {[%clk 00:19:39]} {[%emt 00:00:52]} 41. Rxg6+ {[%clk 00:56:05]}
{[%emt 00:00:15]} hxg6 {[%clk 00:19:38]} {[%emt 00:00:30]} 42. Qxg6# {[%clk
00:56:30]} {[%emt 00:00:06]} 1-0

[Event "Régional Jeunes Occitanie 2024"]
[Site "L'Isle Jourdain, France"]
[Date "2024.02.23"]
[Round "5.1"]
[White "MORENO-CHABOT, Clement"]
[Black "CLAVERIE, Gabriel"]
[Result "1-0"]
[TimeControl "1h30 + 30s/cps"]
[WhiteElo "1771"]
[BlackElo "1132"]

1. d4 {[%clk 01:30:57]} {[%emt 00:00:02]} d5 {[%clk 01:30:53]} {[%emt
00:00:07]} 2. c4 {[%clk 01:31:22]} {[%emt 00:00:05]} c6 {[%clk 01:31:06]}
{[%emt 00:00:18]} 3. g3 {[%clk 01:31:36]} {[%emt 00:00:15]} Bf5 {[%clk
01:30:52]} {[%emt 00:00:43]} 4. Bg2 {[%clk 01:31:44]} {[%emt 00:00:23]} e6
{[%clk 01:30:55]} {[%emt 00:00:26]} 5. Nc3 {[%clk 01:31:03]} {[%emt 00:01:12]}
Bd6 {[%clk 01:30:00]} {[%emt 00:01:25]} 6. Nf3 {[%clk 01:30:34]} {[%emt
00:00:59]} Ne7 {[%clk 01:29:46]} {[%emt 00:00:44]} 7. O-O {[%clk 01:29:49]}
{[%emt 00:01:15]} O-O {[%clk 01:27:57]} {[%emt 00:02:19]} 8. Re1 {[%clk
01:29:57]} {[%emt 00:00:22]} Nd7 {[%clk 01:24:21]} {[%emt 00:04:06]} 9. Nd2
{[%clk 01:29:03]} {[%emt 00:01:24]} Qa5 {[%clk 01:19:26]} {[%emt 00:05:25]} 10.
e4 {[%clk 01:27:39]} {[%emt 00:01:54]} Bg6 {[%clk 01:19:48]} {[%emt 00:00:08]}
11. Nb3 {[%clk 01:27:16]} {[%emt 00:00:52]} Qb4 {[%clk 01:18:18]} {[%emt
00:01:59]} 12. a3 {[%clk 01:25:15]} {[%emt 00:02:32]} Qb6 {[%clk 01:16:40]}
{[%emt 00:02:09]} 13. c5 {[%clk 01:25:32]} {[%emt 00:00:13]} Nxc5 {[%clk
01:15:56]} {[%emt 00:01:13]} 14. dxc5 {[%clk 01:24:40]} {[%emt 00:01:22]} Bxc5
{[%clk 01:16:14]} {[%emt 00:00:13]} 15. Nxc5 {[%clk 01:22:42]} {[%emt
00:02:28]} Qxc5 {[%clk 01:16:38]} {[%emt 00:00:05]} 16. Be3 {[%clk 01:21:32]}
{[%emt 00:01:40]} Qd6 {[%clk 01:16:55]} {[%emt 00:00:14]} 17. Rc1 {[%clk
01:19:56]} {[%emt 00:02:05]} Rad8 {[%clk 01:16:10]} {[%emt 00:01:15]} 18. exd5
{[%clk 01:17:36]} {[%emt 00:02:50]} cxd5 {[%clk 01:16:32]} {[%emt 00:00:08]} 19.
Bf4 {[%clk 01:17:53]} {[%emt 00:00:13]} Qb6 {[%clk 01:15:57]} {[%emt 00:01:05]}
20. Na4 {[%clk 01:17:56]} {[%emt 00:00:27]} Qa5 {[%clk 01:14:33]} {[%emt
00:01:54]} 21. Bc7 {[%clk 01:18:16]} {[%emt 00:00:10]} b6 {[%clk 01:14:36]}
{[%emt 00:00:28]} 22. Bxd8 {[%clk 01:16:00]} {[%emt 00:02:46]} Rxd8 {[%clk
01:15:02]} {[%emt 00:00:03]} 23. Bf1 {[%clk 01:16:29]} {[%emt 00:00:01]} b5
{[%clk 01:14:55]} {[%emt 00:00:37]} 24. Nc5 {[%clk 01:15:53]} {[%emt 00:01:06]}
h6 {[%clk 01:11:37]} {[%emt 00:03:48]} 25. Nb7 {[%clk 01:16:16]} {[%emt
00:00:07]} Qb6 {[%clk 01:11:56]} {[%emt 00:00:11]} 26. Nxd8 {[%clk 01:16:39]}
{[%emt 00:00:07]} Qxd8 {[%clk 01:12:24]} {[%emt 00:00:01]} 27. Bxb5 {[%clk
01:16:23]} {[%emt 00:00:47]} 1-0

[ePGN "0.1;DGT LiveChess/2.2.6"]

[Event "Régional Jeunes Occitanie 2024"]
[Site "L'Isle Jourdain, France"]
[Date "2024.02.23"]
[Round "6.6"]
[White "FIORIO, Thomas"]
[Black "ABELA, Ronan"]
[Result "0-1"]
[TimeControl "1h30 + 30s/cps"]
[WhiteElo "1463"]
[BlackElo "1295"]

1. e4 {[%clk 01:30:56]} {[%emt 00:00:03]} c6 {[%clk 01:30:51]} {[%emt
00:00:10]} 2. Nf3 {[%clk 01:31:13]} {[%emt 00:00:12]} d5 {[%clk 01:31:09]}
{[%emt 00:00:13]} 3. Nc3 {[%clk 01:31:27]} {[%emt 00:00:16]} dxe4 {[%clk
01:31:30]} {[%emt 00:00:09]} 4. Nxe4 {[%clk 01:31:47]} {[%emt 00:00:10]} Bg4
{[%clk 01:31:47]} {[%emt 00:00:14]} 5. h3 {[%clk 01:32:01]} {[%emt 00:00:16]}
Bxf3 {[%clk 01:32:04]} {[%emt 00:00:13]} 6. Qxf3 {[%clk 01:32:23]} {[%emt
00:00:07]} e6 {[%clk 01:32:15]} {[%emt 00:00:20]} 7. Bc4 {[%clk 01:30:31]}
{[%emt 00:02:22]} Nd7 {[%clk 01:31:21]} {[%emt 00:01:24]} 8. d4 {[%clk
01:27:01]} {[%emt 00:18:37]} Ngf6 {[%clk 01:29:11]} 9. c3 {[%clk 01:23:37]}
Nxe4 {[%clk 01:29:08]} 10. Qxe4 {[%clk 01:24:02]} Nf6 {[%clk 01:29:23]} 11. Qf3
{[%clk 01:23:56]} Be7 {[%clk 01:29:14]} 12. Bd2 {[%clk 01:21:01]} O-O {[%clk
01:29:01]} 13. O-O-O {[%clk 01:21:09]} b5 {[%clk 01:28:01]} {[%emt 00:00:05]}
14. Bb3 {[%clk 01:20:24]} {[%emt 00:01:14]} Qb6 {[%clk 01:27:28]} {[%emt
00:01:04]} 15. Rhe1 {[%clk 01:17:46]} {[%emt 00:03:07]} Nd5 {[%clk 01:25:08]}
{[%emt 00:02:51]} 16. Bxd5 {[%clk 01:15:26]} {[%emt 00:02:50]} cxd5 {[%clk
01:25:24]} {[%emt 00:00:14]} 17. Qg4 {[%clk 01:13:28]} {[%emt 00:05:23]} b4
{[%clk 01:23:50]} 18. cxb4 {[%clk 01:06:40]} {[%emt 00:18:01]} Rfc8+ {[%clk
01:21:00]} 19. Kb1 {[%clk 01:06:57]} Bxb4 {[%clk 01:20:28]} 20. Bh6 {[%clk
01:06:42]} Bf8 {[%clk 01:20:36]} 21. Re3 {[%clk 01:06:05]} Rab8 {[%clk
01:19:01]} 22. Rb3 {[%clk 01:05:21]} Qc6 {[%clk 01:19:16]} 23. Rxb8 {[%clk
01:03:46]} {[%emt 00:00:54]} Rxb8 {[%clk 01:19:32]} {[%emt 00:00:14]} 24. Rd3
{[%clk 01:03:34]} {[%emt 00:00:39]} e5 {[%clk 01:17:11]} {[%emt 00:17:35]} 25.
Be3 {[%clk 01:00:26]} e4 {[%clk 01:16:24]} 26. Rc3 {[%clk 00:59:33]} Qxc3
{[%clk 01:16:17]} 27. Qe2 {[%clk 00:59:27]} Qc4 {[%clk 01:15:50]} 28. Qxc4
{[%clk 00:59:11]} dxc4 {[%clk 01:16:08]} 29. Kc2 {[%clk 00:59:27]} Rc8 {[%clk
01:16:12]} 30. Kc3 {[%clk 00:59:41]} a5 {[%clk 01:16:14]} 31. d5 {[%clk
00:59:28]} Bd6 {[%clk 01:15:55]} 32. Bd2 {[%clk 00:59:25]} Bb4+ {[%clk
01:16:16]} 33. Kd4 0-1

[Event "Régional Jeunes Occitanie 2024"]
[Site "L'Isle Jourdain, France"]
[Date "2024.02.23"]
[Round "6.7"]
[White "OFFORT, Louis Alyster"]
[Black "MARTINEZ, Julien"]
[Result "0-1"]
[TimeControl "1h30 + 30s/cps"]
[WhiteElo "1354"]
[BlackElo "1556"]

1. e4 {[%clk 01:30:36]} {[%emt 00:00:22]} c6 {[%clk 01:30:57]} {[%emt
00:00:04]} 2. d4 {[%emt 00:00:27]} d5 {[%clk 01:31:22]} 3. exd5 {[%clk
01:30:31]} {[%emt 00:00:42]} cxd5 {[%clk 01:31:40]} {[%emt 00:00:13]} 4. Bd3
{[%clk 01:30:31]} {[%emt 00:00:30]} Nf6 {[%clk 01:32:03]} {[%emt 00:00:07]} 5.
h3 {[%clk 01:30:27]} {[%emt 00:00:34]} Nc6 {[%clk 01:32:23]} {[%emt 00:00:10]}
6. c3 {[%clk 01:30:25]} {[%emt 00:00:32]} e6 {[%clk 01:32:39]} {[%emt
00:00:14]} 7. Bf4 {[%clk 01:29:50]} {[%emt 00:01:04]} Bd6 {[%clk 01:33:03]}
{[%emt 00:00:07]} 8. Bxd6 {[%clk 01:29:22]} {[%emt 00:00:58]} Qxd6 {[%clk
01:33:27]} {[%emt 00:00:07]} 9. Nf3 {[%clk 01:28:10]} {[%emt 00:18:32]} a6
{[%clk 01:33:25]} 10. Nbd2 {[%clk 01:26:10]} b5 {[%clk 01:32:36]} 11. a3 {[%clk
01:24:37]} Rb8 {[%clk 01:32:11]} 12. Qe2 {[%clk 01:23:28]} Nd7 {[%clk
01:31:30]} 13. O-O {[%clk 01:13:01]} {[%emt 00:04:14]} O-O {[%clk 01:31:48]}
{[%emt 00:00:12]} 14. Ng5 {[%clk 01:09:51]} {[%emt 00:03:41]} g6 {[%clk
01:30:33]} {[%emt 00:01:45]} 15. Qg4 {[%clk 01:04:54]} {[%emt 00:06:57]} e5
{[%clk 01:26:03]} {[%emt 00:03:30]} 16. dxe5 {[%clk 01:01:42]} {[%emt
00:14:31]} Ncxe5 {[%clk 01:22:16]} 17. Qh4 {[%clk 00:59:52]} Nf6 {[%clk
01:15:30]} {[%emt 00:03:05]} 18. Qf4 {[%clk 00:57:36]} {[%emt 00:16:17]} Nh5
{[%clk 01:14:27]} 19. Qh2 {[%clk 00:56:03]} Qf6 {[%clk 01:02:14]} {[%emt
00:02:48]} 20. Ngf3 {[%clk 00:54:56]} {[%emt 00:03:05]} Nxd3 {[%clk 00:58:46]}
{[%emt 00:02:30]} 21. Qxb8 {[%clk 00:53:51]} {[%emt 00:17:06]} Nhf4 {[%clk
00:58:19]} 22. Qa7 {[%clk 00:49:32]} Re8 {[%clk 00:54:43]} 23. Qd4 {[%clk
00:48:23]} Ne2+ {[%clk 00:54:45]} 0-1

[Event "Régional Jeunes Occitanie 2024"]
[Site "L'Isle Jourdain, France"]
[Date "2024.02.23"]
[Round "6.1"]
[White "COLLAS, Anthony"]
[Black "MORENO-CHABOT, Clement"]
[Result "1/2-1/2"]
[TimeControl "1h30 + 30s/cps"]
[WhiteElo "1439"]
[BlackElo "1771"]

1. e4 {[%clk 01:30:59]} {[%emt 00:00:01]} c5 {[%clk 01:28:20]} {[%emt
00:02:41]} 2. Nf3 {[%clk 01:31:14]} {[%emt 00:00:14]} Nc6 {[%clk 01:28:46]}
{[%emt 00:00:04]} 3. Bb5 {[%clk 01:31:09]} {[%emt 00:00:35]} g6 {[%clk
01:29:10]} {[%emt 00:00:06]} 4. Bxc6 {[%clk 01:31:06]} {[%emt 00:00:34]} dxc6
{[%clk 01:29:36]} {[%emt 00:00:04]} 5. O-O {[%clk 01:31:07]} {[%emt 00:00:28]}
Bg7 {[%clk 01:30:00]} {[%emt 00:00:05]} 6. d3 {[%clk 01:30:56]} {[%emt
00:00:41]} e5 {[%clk 01:28:50]} {[%emt 00:01:40]} 7. Be3 {[%clk 01:31:04]}
{[%emt 00:00:22]} b6 {[%clk 01:29:10]} {[%emt 00:00:11]} 8. h3 {[%clk
01:29:31]} {[%emt 00:16:59]} Qc7 {[%clk 01:26:53]} 9. Qd2 {[%clk 01:29:06]} Ba6
{[%clk 01:25:57]} 10. a4 {[%clk 01:27:11]} Nf6 {[%clk 01:22:21]} 11. Bh6 {[%clk
01:20:06]} {[%emt 00:04:17]} O-O {[%clk 01:21:09]} {[%emt 00:01:42]} 12. Nc3
{[%clk 01:17:45]} {[%emt 00:02:50]} Rfd8 {[%clk 01:19:39]} {[%emt 00:02:00]} 13.
b3 {[%clk 01:15:51]} {[%emt 00:05:58]} c4 {[%clk 01:05:53]} {[%emt 00:18:01]}
14. bxc4 {[%clk 01:15:01]} Bxc4 {[%clk 01:06:15]} 15. a5 {[%clk 01:09:07]}
{[%emt 00:00:35]} bxa5 {[%clk 00:54:20]} {[%emt 00:18:48]} 16. Bxg7 {[%clk
01:08:26]} Kxg7 {[%clk 00:54:23]} 17. Qg5 {[%clk 01:08:13]} Bxd3 {[%clk
00:50:15]} {[%emt 00:00:35]} 18. cxd3 {[%clk 01:07:27]} {[%emt 00:01:17]} Rxd3
{[%clk 00:50:20]} {[%emt 00:00:24]} 19. Rfc1 {[%clk 01:01:19]} {[%emt
00:06:38]} Re8 {[%clk 00:49:59]} {[%emt 00:16:34]} 20. Rc2 {[%clk 00:56:59]} h6
{[%clk 00:47:40]} 21. Qc1 {[%clk 00:57:20]} Red8 {[%clk 00:47:11]} 22. Ne1
{[%clk 00:49:52]} {[%emt 00:01:01]} R3d7 {[%clk 00:45:23]} {[%emt 00:02:19]} 23.
Rca2 {[%clk 00:47:24]} {[%emt 00:10:02]} Qb6 {[%clk 00:44:11]} 24. Nf3 {[%clk
00:45:33]} Qb4 {[%clk 00:37:03]} {[%emt 00:04:37]} 25. Ra4 {[%clk 00:39:41]}
{[%emt 00:06:21]} Qb3 {[%clk 00:36:59]} {[%emt 00:00:36]} 26. R4a3 {[%clk
00:33:03]} {[%emt 00:16:15]} Qb6 {[%clk 00:35:52]} 27. Rxa5 {[%clk 00:30:23]}
Nxe4 {[%clk 00:35:53]} 28. Rxe5 {[%clk 00:29:23]} Qxf2+ {[%clk 00:30:27]}
{[%emt 00:03:35]} 29. Kh2 {[%clk 00:28:46]} {[%emt 00:01:07]} Qg3+ {[%clk
00:30:45]} {[%emt 00:00:12]} 30. Kg1 {[%clk 00:28:42]} {[%emt 00:00:33]} Qf2+
{[%clk 00:31:09]} {[%emt 00:00:07]} 31. Kh2 {[%clk 00:29:00]} {[%emt 00:00:10]}
Qg3+ {[%clk 00:25:45]} {[%emt 00:05:23]} 1/2-1/2

[Event "Régional Jeunes Occitanie 2024"]
[Site "L'Isle Jourdain, France"]
[Date "2024.02.23"]
[Round "6.4"]
[White "RAMANANTSOA, Stanley"]
[Black "FESIGNY, Oceane"]
[Result "1/2-1/2"]
[TimeControl "1h30 + 30s/cps"]
[WhiteElo "1664"]
[BlackElo "1761"]

1. d4 {[%clk 01:30:57]} {[%emt 00:00:02]} d5 {[%clk 01:30:49]} {[%emt
00:00:11]} 2. c4 {[%clk 01:31:22]} {[%emt 00:00:05]} e6 {[%clk 01:31:01]}
{[%emt 00:00:18]} 3. Nf3 {[%clk 01:31:46]} {[%emt 00:00:06]} Nf6 {[%clk
01:30:50]} {[%emt 00:00:41]} 4. g3 {[%clk 01:32:01]} {[%emt 00:00:15]} Be7
{[%clk 01:29:06]} {[%emt 00:02:14]} 5. Bg2 {[%clk 01:32:25]} {[%emt 00:00:06]}
O-O {[%clk 01:29:13]} {[%emt 00:00:24]} 6. O-O {[%clk 01:32:45]} {[%emt
00:00:09]} c6 {[%clk 01:27:57]} {[%emt 00:01:46]} 7. Qc2 {[%clk 01:33:04]}
{[%emt 00:00:11]} Nbd7 {[%clk 01:27:18]} {[%emt 00:01:09]} 8. Nbd2 {[%clk
01:32:10]} {[%emt 00:17:07]} Re8 {[%clk 01:24:47]} 9. e4 {[%clk 01:30:18]} dxe4
{[%clk 01:08:42]} {[%emt 00:06:14]} 10. Nxe4 {[%clk 01:30:42]} {[%emt
00:00:06]} Nxe4 {[%clk 01:04:50]} {[%emt 00:04:22]} 11. Qxe4 {[%clk 01:31:03]}
{[%emt 00:00:09]} Nf6 {[%clk 01:05:12]} {[%emt 00:00:08]} 12. Qe2 {[%clk
01:25:34]} {[%emt 00:05:59]} h6 {[%clk 00:51:53]} {[%emt 00:17:50]} 13. Rd1
{[%clk 01:20:42]} {[%emt 00:01:21]} Bd6 {[%clk 00:50:22]} {[%emt 00:02:00]} 14.
b3 {[%clk 01:10:53]} {[%emt 00:16:02]} Qe7 {[%clk 00:47:17]} 15. Bb2 {[%clk
01:01:55]} {[%emt 00:07:21]} Rb8 {[%clk 00:34:30]} {[%emt 00:18:07]} 16. Ne5
{[%clk 00:50:19]} {[%emt 00:13:22]} Nd7 {[%clk 00:20:33]} {[%emt 00:08:21]} 17.
Nd3 {[%clk 00:36:12]} {[%emt 00:19:26]} c5 {[%clk 00:15:26]} {[%emt 00:00:47]}
18. dxc5 {[%clk 00:35:50]} {[%emt 00:00:52]} Nxc5 {[%clk 00:15:41]} {[%emt
00:00:14]} 19. Nxc5 {[%clk 00:23:37]} {[%emt 00:12:44]} Bxc5 {[%clk 00:16:06]}
{[%emt 00:00:06]} 20. Qe5 {[%clk 00:21:57]} {[%emt 00:02:09]} Qf6 {[%clk
00:14:09]} {[%emt 00:02:27]} 21. Qxc5 {[%clk 00:09:30]} {[%emt 00:12:56]} Qxb2
{[%clk 00:14:18]} {[%emt 00:00:22]} 22. Qxa7 {[%clk 00:09:54]} {[%emt
00:00:06]} Qe5 {[%emt 00:02:27]} 23. Rac1 {[%clk 00:08:24]} Qc7 {[%clk
00:09:07]} {[%emt 00:05:44]} 24. Rc2 {[%clk 00:03:07]} {[%emt 00:05:47]} Bd7
{[%clk 00:08:23]} {[%emt 00:01:14]} 25. Rcd2 {[%clk 00:02:47]} {[%emt
00:00:50]} Bc6 {[%clk 00:08:09]} {[%emt 00:00:44]} 26. Qc5 {[%clk 00:02:23]}
{[%emt 00:00:54]} Rec8 {[%clk 00:06:41]} {[%emt 00:01:57]} 27. Bxc6 {[%clk
00:02:02]} {[%emt 00:00:51]} Qxc6 {[%clk 00:06:18]} {[%emt 00:00:53]} 28. Qxc6
{[%clk 00:01:02]} {[%emt 00:01:31]} bxc6 {[%clk 00:06:34]} {[%emt 00:00:13]} 29.
Rd7 {[%clk 00:01:17]} {[%emt 00:00:15]} Ra8 {[%clk 00:06:20]} {[%emt 00:00:44]}
30. R1d2 {[%clk 00:00:48]} {[%emt 00:00:59]} Kf8 {[%clk 00:05:01]} {[%emt
00:01:49]} 31. Rb7 {[%clk 00:01:02]} {[%emt 00:00:16]} Rcb8 {[%clk 00:04:55]}
{[%emt 00:00:36]} 32. Rc7 {[%clk 00:00:55]} {[%emt 00:00:38]} Rc8 {[%clk
00:05:14]} {[%emt 00:00:10]} 33. Rdd7 {[%clk 00:01:12]} {[%emt 00:00:13]} Rxc7
{[%clk 00:05:23]} {[%emt 00:00:21]} 34. Rxc7 {[%clk 00:01:38]} {[%emt
00:00:04]} Rxa2 {[%clk 00:05:42]} {[%emt 00:00:11]} 35. Rxc6 {[%clk 00:01:41]}
{[%emt 00:00:28]} Rb2 {[%clk 00:05:57]} {[%emt 00:00:15]} 36. Rb6 {[%clk
00:01:45]} {[%emt 00:00:25]} Ke8 {[%clk 00:05:21]} {[%emt 00:01:06]} 37. Rb7
{[%clk 00:00:42]} {[%emt 00:01:34]} g6 {[%clk 00:04:39]} {[%emt 00:01:11]} 38.
c5 {[%clk 00:00:55]} {[%emt 00:00:17]} f5 {[%clk 00:04:05]} {[%emt 00:01:04]}
39. b4 {[%clk 00:00:46]} {[%emt 00:00:39]} Kd8 {[%clk 00:04:11]} {[%emt
00:00:24]} 40. b5 {[%clk 00:01:03]} {[%emt 00:00:14]} Kc8 {[%clk 00:04:07]}
{[%emt 00:00:34]} 41. c6 {[%clk 00:01:19]} {[%emt 00:00:14]} e5 {[%clk
00:03:52]} {[%emt 00:00:45]} 42. Kg2 {[%clk 00:01:23]} {[%emt 00:00:25]} e4
{[%clk 00:03:55]} {[%emt 00:00:26]} 43. Kf1 {[%clk 00:00:40]} {[%emt 00:01:14]}
g5 {[%clk 00:03:42]} {[%emt 00:00:43]} 44. Rh7 {[%clk 00:00:35]} {[%emt
00:00:34]} Rxb5 {[%clk 00:03:47]} {[%emt 00:00:25]} 45. Rxh6 {[%clk 00:00:56]}
{[%emt 00:00:09]} f4 {[%clk 00:03:42]} {[%emt 00:00:35]} 46. gxf4 {[%clk
00:00:41]} {[%emt 00:00:46]} gxf4 {[%clk 00:04:07]} {[%emt 00:00:04]} 47. Kg2
{[%clk 00:00:46]} {[%emt 00:00:25]} Kc7 {[%clk 00:00:55]} {[%emt 00:03:42]} 48.
h4 {[%clk 00:00:54]} {[%emt 00:00:22]} Re5 {[%clk 00:01:04]} {[%emt 00:00:22]}
49. Rf6 {[%clk 00:00:52]} {[%emt 00:00:32]} e3 {[%clk 00:00:50]} {[%emt
00:00:44]} 50. fxe3 {[%clk 00:01:19]} {[%emt 00:00:03]} fxe3 {[%clk 00:01:18]}
{[%emt 00:00:02]} 51. Kf1 {[%clk 00:01:34]} {[%emt 00:00:15]} Rh5 {[%clk
00:01:18]} {[%emt 00:00:30]} 52. Ke2 {[%clk 00:00:44]} {[%emt 00:01:20]} Rxh4
{[%clk 00:01:39]} {[%emt 00:00:09]} 53. Kxe3 {[%clk 00:00:46]} {[%emt
00:00:28]} 1/2-1/2